fUST/lending_fUST_20250627
["ID","MTS","AMOUNT","RATE_DAILY","PERIOD"]
[367991683,1750985444347,-460.0,0.00019988,2]
[367991684,1750985444357,-460.0,0.00019988,2]
[367991685,1750985444366,-460.0,0.00019988,2]
[367991686,1750985444376,-610.09,0.00019988,2]
[367991687,1750985444385,-460.0,0.00019988,2]
[367991688,1750985444395,-463.2347657,0.00019988,2]
[367991689,1750985444404,-460.0,0.00019988,2]
[367991690,1750985444414,-460.0,0.00019988,2]
[367991691,1750985444424,-460.0,0.00019988,2]
[367991692,1750985444434,-709.37,0.00019988,2]
[367991693,1750985444444,-460.0,0.00019988,2]
[367991694,1750985444454,-939.16,0.00019988,2]
[367991695,1750985444464,-460.0,0.00019988,2]
[367991696,1750985444478,-460.0,0.00019988,2]
[367991697,1750985444487,-460.0,0.00019988,2]
[367991698,1750985444497,-460.0,0.00019988,2]
[367991699,1750985444507,-460.0,0.00019988,2]
[367991700,1750985444517,-500.0,0.00019988,2]
[367991701,1750985444526,-460.0,0.00019988,2]
[367991702,1750985444536,-460.0,0.00019988,2]
[367991703,1750985444545,-460.0,0.00019988,2]
[367991704,1750985444555,-460.0,0.00019988,2]
[367991705,1750985444564,-460.0,0.00019988,2]
[367991706,1750985444574,-460.0,0.00019988,2]
[367991707,1750985444584,-460.0,0.00019988,2]
[367991708,1750985444594,-460.0,0.00019988,2]
[367991709,1750985444604,-542.75,0.00019988,2]
[367991710,1750985444614,-460.0,0.00019988,2]
[367991711,1750985444623,-460.0,0.00019988,2]
[367991712,1750985444633,-460.0,0.00019988,2]
[367991713,1750985444642,-405.63175389,0.00019988,2]
[367991714,1750985444652,-511.49,0.00019988,2]
[367991715,1750985444662,-460.0,0.00019988,2]
[367991716,1750985444673,-582.91,0.00019988,2]
[367991717,1750985444682,-460.0,0.00019988,2]
[367991718,1750985444692,-460.0,0.00019988,2]
[367991719,1750985444702,-460.0,0.00019988,2]
[367991720,1750985444712,-460.0,0.00019988,2]
[367991721,1750985444721,-460.0,0.00019988,2]
[367991722,1750985444731,-460.0,0.00019988,2]
[367991723,1750985444741,-417.8070118,0.00019988,2]
[367991724,1750985444751,-460.0,0.00019988,2]
[367991725,1750985444760,-160.39523117,0.00019988,2]
[367991726,1750985444768,-490.39937732,0.00019988,2]
[367991727,1750985444776,-460.0,0.00019988,2]
[367991728,1750985444783,-713.85,0.00019988,2]
[367991729,1750985444792,-460.0,0.00019988,2]
[367991730,1750985444802,-460.0,0.00019988,2]
[367991731,1750985444811,-460.0,0.00019988,2]
[367991732,1750985444822,-460.0,0.00019988,2]
[367991733,1750985444834,-440.0,0.00019988,2]
[367991734,1750985444846,-460.0,0.00019988,2]
[367991735,1750985444855,-460.0,0.00019988,2]
[367991736,1750985444866,-460.0,0.00019988,2]
[367991737,1750985444877,-460.0,0.00019988,2]
[367991738,1750985444887,-460.0,0.00019988,2]
[367991739,1750985444897,-460.0,0.00019988,2]
[367991740,1750985444906,-460.0,0.00019988,2]
[367991741,1750985444918,-253.80761887,0.00019988,2]
[367991742,1750985444928,-460.0,0.00019988,2]
[367991743,1750985444939,-460.0,0.00019988,2]
[367991744,1750985444948,-460.0,0.00019988,2]
[367991745,1750985444958,-460.0,0.00019988,2]
[367991746,1750985444968,-582.6206452,0.00019988,2]
[367991747,1750985444978,-500.0,0.00019988,2]
[367991748,1750985444988,-500.0,0.00019988,2]
[367991749,1750985444998,-500.0,0.00019988,2]
[367991750,1750985445008,-500.0,0.00019988,2]
[367991751,1750985445018,-500.0,0.00019988,2]
[367991752,1750985445028,-500.0,0.00019988,2]
[367991753,1750985445038,-500.0,0.00019988,2]
[367991754,1750985445049,-460.0,0.00019988,2]
[367991755,1750985445058,-460.0,0.00019988,2]
[367991756,1750985445069,-500.0,0.00019988,2]
[367991757,1750985445079,-500.0,0.00019988,2]
[367991758,1750985445088,-460.40208519,0.00019988,2]
[367991759,1750985445097,-460.0,0.00019988,2]
[367991760,1750985445239,-460.0,0.00019988,2]
[367991761,1750985445248,-460.0,0.00019988,2]
[367991762,1750985445258,-460.0,0.00019988,2]
[367991763,1750985445268,-551.11,0.00019988,2]
[367991764,1750985445277,-460.0,0.00019988,2]
[367991765,1750985445287,-460.0,0.00019988,2]
[367991766,1750985445296,-460.0,0.00019988,2]
[367991767,1750985445306,-460.0,0.00019988,2]
[367991768,1750985445315,-460.0,0.00019988,2]
[367991769,1750985445326,-460.0,0.00019988,2]
[367991770,1750985445335,-460.0,0.00019988,2]
[367991771,1750985445344,-460.0,0.00019988,2]
[367991772,1750985445354,-460.0,0.00019988,2]
[367991773,1750985445365,-460.0,0.00019988,2]
[367991774,1750985445374,-460.0,0.00019988,2]
[367991775,1750985445384,-500.0,0.00019988,2]
[367991776,1750985445394,-460.0,0.00019988,2]
[367991777,1750985445403,-460.0,0.00019988,2]
[367991778,1750985445413,-756.69,0.00019988,2]
[367991779,1750985445423,-1166.64,0.00019988,2]
[367991780,1750985445433,-460.0,0.00019988,2]
[367991781,1750985445443,-460.0,0.00019988,2]
[367991782,1750985445453,-460.0,0.00019988,2]
[367991783,1750985445462,-435.64755293,0.00019988,2]
[367991784,1750985445472,-460.0,0.00019988,2]
[367991785,1750985445482,-460.0,0.00019988,2]
[367991786,1750985445491,-460.0,0.00019988,2]
[367991787,1750985445501,-460.0,0.00019988,2]
[367991788,1750985445511,-460.0,0.00019988,2]
[367991789,1750985445520,-467.47,0.00019988,2]
[367991790,1750985445530,-460.0,0.00019988,2]
[367991791,1750985445539,-390.0,0.00019988,2]
[367991792,1750985445550,-460.0,0.00019988,2]
[367991793,1750985445561,-460.0,0.00019988,2]
[367991794,1750985445571,-460.0,0.00019988,2]
[367991795,1750985445581,-460.0,0.00019988,2]
[367991796,1750985445590,-460.0,0.00019988,2]
[367991797,1750985445599,-574.99,0.00019988,2]
[367991798,1750985445609,-460.0,0.00019988,2]
[367991799,1750985445618,-460.0,0.00019988,2]
[367991800,1750985445628,-460.0,0.00019988,2]
[367991801,1750985445638,-374.94080551,0.00019988,2]
[367991802,1750985445648,-460.0,0.00019988,2]
[367991803,1750985445658,-1000.0,0.00019988,2]
[367991804,1750985445667,-1000.0,0.00019988,2]
[367991805,1750985445678,-1000.0,0.00019988,2]
[367991806,1750985445687,-1000.0,0.00019988,2]
[367991807,1750985445697,-1000.0,0.00019988,2]
[367991808,1750985445707,-1000.0,0.00019988,2]
[367991809,1750985445717,-1000.0,0.00019988,2]
[367991810,1750985445726,-151.4,0.00019988,2]
[367991811,1750985445736,-460.0,0.00019988,2]
[367991812,1750985445745,-460.0,0.00019988,2]
[367991813,1750985445755,-460.0,0.00019988,2]
[367991814,1750985445764,-460.0,0.00019988,2]
[367991815,1750985445775,-460.0,0.00019988,2]
[367991816,1750985445785,-460.0,0.00019988,2]
[367991817,1750985445794,-460.0,0.00019988,2]
[367991818,1750985445804,-458.27456262,0.00019989,2]
[367991819,1750985445813,-151.0,0.0001999,2]
[367991820,1750985445823,-151.0,0.0001999,2]
[367991821,1750985445834,-151.0,0.0002,2]
[367991822,1750985445845,-151.0,0.0002,2]
[367991823,1750985445855,-9822.98156475,0.00020107,2]
[367991824,1750985445865,-156.350543,0.00020107,2]
[367991825,1750985445876,-151.0,0.00020107,2]
[367991826,1750985445886,-536.46974944,0.00020189,2]
[367991827,1750985445895,-460.0,0.00020189,2]
[367991828,1750985445904,-460.0,0.00020189,2]
[367991829,1750985445914,-460.0,0.00020189,2]
[367991830,1750985445923,-476.49,0.00020189,2]
[367991831,1750985445933,-460.0,0.00020189,2]
[367991832,1750985445942,-460.0,0.00020189,2]
[367991833,1750985445952,-460.0,0.0002019,2]
[367991834,1750985445962,-460.0,0.0002019,2]
[367991835,1750985445971,-460.0,0.0002019,2]
[367991836,1750985445981,-484.57,0.0002019,2]
[367991837,1750985445991,-496.21,0.0002019,2]
[367991838,1750985446001,-739.56,0.0002019,2]
[367991839,1750985446011,-2888.24,0.0002019,2]
[367991840,1750985446021,-2989.15,0.0002019,2]
[367991841,1750985446030,-3488.98,0.0002019,2]
[367991842,1750985446041,-470.26,0.0002019,2]
[367991843,1750985446051,-460.0,0.00020191,2]
[367991844,1750985446060,-460.0,0.00020191,2]
[367991845,1750985446070,-360.16166404,0.00020191,2]
[367991846,1750985446079,-505.49584676,0.00020191,2]
[367991847,1750985446088,-460.0,0.00020191,2]
[367991848,1750985446098,-274.84392406,0.00020191,2]
[367991849,1750985446107,-460.0,0.00020191,2]
[367991850,1750985446116,-477.33,0.00020191,2]
[367991851,1750985446126,-460.0,0.00020191,2]
[367991852,1750985446135,-460.0,0.00020191,2]
[367991853,1750985446146,-374.15566583,0.00020191,2]
[367991854,1750985446156,-460.0,0.00020191,2]
[367991855,1750985446165,-460.0,0.00020191,2]
[367991856,1750985446175,-460.0,0.00020191,2]
[367991857,1750985446185,-460.0,0.00020192,2]
[367991858,1750985446194,-526.61215285,0.00020192,2]
[367991859,1750985446203,-674.66,0.00020192,2]
[367991860,1750985446213,-2355.03,0.00020192,2]
[367991861,1750985446223,-1040.41,0.00020192,2]
[367991862,1750985446232,-279.50000011,0.00020192,2]
[367991863,1750985446242,-2625.1,0.00020192,2]
[367991864,1750985446251,-2936.96,0.00020192,2]
[367991865,1750985446261,-661.24,0.00020192,2]
[367991866,1750985446270,-1924.14,0.00020192,2]
[367991868,1750985446280,-460.0,0.00020192,2]
[367991870,1750985446290,-760.31,0.00020192,2]
[367991872,1750985446300,-911.06,0.00020192,2]
[367991873,1750985446309,-865.11,0.00020192,2]
[367991874,1750985446318,-859.44,0.00020192,2]
[367991876,1750985446328,-2585.81,0.00020192,2]
[367991878,1750985446337,-460.0,0.00020192,2]
[367991879,1750985446346,-460.0,0.00020192,2]
[367991880,1750985446356,-742.21,0.00020192,2]
[367991881,1750985446365,-460.0,0.00020192,2]
[367991882,1750985446375,-1135.56,0.00020192,2]
[367991883,1750985446385,-746.24,0.00020192,2]
[367991884,1750985446395,-270.90373731,0.00020192,2]
[367991885,1750985446404,-460.0,0.00020192,2]
[367991886,1750985446414,-460.0,0.00020192,2]
[367991887,1750985446424,-460.0,0.00020192,2]
[367991888,1750985446434,-460.0,0.00020193,2]
[367991889,1750985446444,-460.0,0.00020193,2]
[367991890,1750985446453,-460.0,0.00020193,2]
[367991891,1750985446463,-460.0,0.00020193,2]
[367991892,1750985446472,-639.43,0.00020193,2]
[367991893,1750985446482,-506.47,0.00020193,2]
[367991894,1750985446491,-460.0,0.00020193,2]
[367991895,1750985446501,-460.0,0.00020193,2]
[367991896,1750985446511,-460.0,0.00020193,2]
[367991897,1750985446520,-460.0,0.00020193,2]
[367991898,1750985446530,-460.0,0.00020193,2]
[367991899,1750985446540,-472.22,0.00020193,2]
[367991900,1750985446549,-460.0,0.00020193,2]
[367991901,1750985446559,-460.0,0.00020193,2]
[367991902,1750985446569,-460.0,0.00020193,2]
[367991903,1750985446579,-832.88,0.00020193,2]
[367991904,1750985446589,-531.59,0.00020193,2]
[367991905,1750985446599,-904.59,0.00020193,2]
[367991906,1750985446608,-1041.25,0.00020193,2]
[367991907,1750985446618,-636.67,0.00020193,2]
[367991908,1750985446628,-719.61,0.00020193,2]
[367991909,1750985446637,-1520.21,0.00020193,2]
[367991910,1750985446647,-486.19,0.00020193,2]
[367991911,1750985446657,-952.51,0.00020193,2]
[367991912,1750985446667,-151.0,0.00020193,2]
[367991913,1750985446678,-460.0,0.00020193,2]
[367991914,1750985446688,-743.46,0.00020193,2]
[367991915,1750985446698,-737.47,0.00020193,2]
[367991916,1750985446708,-905.43,0.00020193,2]
[367991917,1750985446718,-338.04343421,0.00020193,2]
[367991918,1750985446728,-460.0,0.00020193,2]
[367991919,1750985446737,-668.6,0.00020193,2]
[367991920,1750985446747,-460.0,0.00020193,2]
[367991921,1750985446756,-847.36,0.00020193,2]
[367991922,1750985446767,-151.0,0.00020193,2]
[367991923,1750985446777,-151.0,0.00020193,2]
[367991924,1750985446787,-151.0,0.00020193,2]
[367991925,1750985446797,-151.0,0.00020193,2]
[367991926,1750985446806,-630.78,0.00020193,2]
[367991927,1750985446815,-151.0,0.00020193,2]
[367991928,1750985446825,-460.0,0.00020193,2]
[367991929,1750985446837,-151.0,0.00020193,2]
[367991930,1750985446847,-1361.83,0.00020193,2]
[367991931,1750985446857,-460.0,0.00020193,2]
[367991932,1750985446866,-151.0,0.00020193,2]
[367991933,1750985446875,-460.0,0.00020193,2]
[367991934,1750985446886,-460.0,0.00020194,2]
[367991935,1750985446895,-460.0,0.00020194,2]
[367991936,1750985446905,-502.94639883,0.00020194,2]
[367991937,1750985446915,-460.0,0.00020194,2]
[367991938,1750985446926,-460.0,0.00020194,2]
[367991939,1750985446935,-460.0,0.00020194,2]
[367991940,1750985446945,-336.38472734,0.00020194,2]
[367991941,1750985446954,-460.0,0.00020194,2]
[367991942,1750985446963,-460.0,0.00020194,2]
[367991943,1750985446972,-551.7,0.00020194,2]
[367991944,1750985446981,-460.0,0.00020194,2]
[367991945,1750985446990,-460.0,0.00020194,2]
[367991946,1750985447000,-873.68,0.00020194,2]
[367991947,1750985447009,-460.0,0.00020194,2]
[367991948,1750985447018,-1038.4,0.00020194,2]
[367991949,1750985447028,-460.0,0.00020194,2]
[367991950,1750985447037,-460.0,0.00020194,2]
[367991951,1750985447046,-533.46,0.00020194,2]
[367991952,1750985447055,-460.0,0.00020194,2]
[367991953,1750985447065,-460.0,0.00020194,2]
[367991954,1750985447075,-460.0,0.00020194,2]
[367991955,1750985447085,-259.18330606,0.00020194,2]
[367991956,1750985447095,-460.0,0.00020195,2]
[367991957,1750985447104,-460.0,0.00020195,2]
[367991958,1750985447113,-460.0,0.00020195,2]
[367991959,1750985447122,-615.81,0.00020195,2]
[367991960,1750985447131,-6377.11,0.00020195,2]
[367991961,1750985447140,-151.0,0.00020195,2]
[367991962,1750985447150,-605.53,0.00020195,2]
[367991963,1750985447161,-1340.26,0.00020195,2]
[367991964,1750985447171,-460.0,0.00020195,2]
[367991965,1750985447180,-177.82,0.00020195,2]
[367991966,1750985447189,-534.1,0.00020195,2]
[367991967,1750985447199,-460.0,0.00020195,2]
[367991968,1750985447208,-2161.84,0.00020195,2]
[367991969,1750985447217,-884.85,0.00020195,2]
[367991970,1750985447226,-1202.58,0.00020195,2]
[367991971,1750985447236,-749.5,0.00020195,2]
[367991972,1750985447245,-481.04,0.00020195,2]
[367991973,1750985447255,-1182.79,0.00020195,2]
[367991974,1750985447264,-463.79,0.00020195,2]
[367991975,1750985447274,-2742.58,0.00020195,2]
[367991976,1750985447283,-1047.15,0.00020195,2]
[367991977,1750985447292,-460.0,0.00020196,2]
[367991978,1750985447301,-460.0,0.00020196,2]
[367991979,1750985447311,-873.68,0.00020196,2]
[367991980,1750985447320,-460.0,0.00020197,2]
[367991981,1750985447330,-535.82,0.00020197,2]
[367991982,1750985447339,-6536.264408,0.00020197,2]
[367991983,1750985447349,-1308.61,0.00020197,2]
[367991984,1750985447359,-460.0,0.00020197,2]
[367991985,1750985447369,-693.75,0.00020197,2]
[367991986,1750985447378,-563.93,0.00020197,2]
[367991987,1750985447388,-1933.82,0.00020197,2]
[367991988,1750985447397,-1747.35,0.00020197,2]
[367991989,1750985447407,-460.0,0.00020197,2]
[367991990,1750985447416,-460.0,0.00020197,2]
[367991991,1750985447426,-2047.33,0.00020197,2]
[367991992,1750985447435,-460.0,0.00020197,2]
[367991993,1750985447444,-401.12400828,0.00020232,2]
[367991994,1750985447454,-431.33261472,0.00020258,2]
[367991995,1750985447463,-873.68,0.00020261,2]
[367991996,1750985447473,-873.68,0.00020261,2]
[367991997,1750985447482,-873.68,0.00020261,2]
[367991998,1750985447492,-460.66327388,0.00020262,2]
[367991999,1750985447501,-460.0,0.00020262,2]
[367992000,1750985447511,-460.0,0.00020262,2]
[367992001,1750985447521,-460.0,0.00020262,2]
[367992002,1750985447530,-460.0,0.00020262,2]
[367992003,1750985447540,-373.21352027,0.00020262,2]
[367992004,1750985447550,-460.0,0.00020262,2]
[367992005,1750985447559,-460.95441109,0.00020262,2]
[367992006,1750985447570,-460.0,0.00020262,2]
[367992007,1750985447579,-460.0,0.00020262,2]
[367992008,1750985447589,-460.0,0.00020262,2]
[367992009,1750985447599,-477.42,0.00020262,2]
[367992010,1750985447643,-460.0,0.00020262,2]
[367992011,1750985447653,-460.0,0.00020262,2]
[367992012,1750985447663,-462.94,0.00020262,2]
[367992013,1750985447673,-460.0,0.00020262,2]
[367992014,1750985447683,-302.77446442,0.00020262,2]
[367992015,1750985447692,-460.0,0.00020262,2]
[367992016,1750985447702,-482.658,0.00020262,2]
[367992017,1750985447712,-460.0,0.00020262,2]
[367992018,1750985447721,-460.0,0.00020262,2]
[367992019,1750985447731,-432.97271329,0.00020262,2]
[367992020,1750985447740,-460.0,0.00020262,2]
[367992021,1750985447749,-460.0,0.00020262,2]
[367992022,1750985447759,-208.56487203,0.00020262,2]
[367992023,1750985447768,-460.0,0.00020262,2]
[367992024,1750985447778,-460.0,0.00020262,2]
[367992025,1750985447788,-460.0,0.00020262,2]
[367992026,1750985447798,-460.0,0.00020262,2]
[367992027,1750985447807,-527.01542089,0.00020262,2]
[367992028,1750985447816,-196.00646806,0.00020262,2]
[367992029,1750985447825,-460.0,0.00020262,2]
[367992030,1750985447836,-460.0,0.00020262,2]
[367992031,1750985447845,-460.0,0.00020262,2]
[367992032,1750985447855,-304.81,0.00020262,2]
[367992033,1750985447863,-460.0,0.00020262,2]
[367992034,1750985447873,-460.0,0.00020262,2]
[367992035,1750985447882,-395.57311899,0.00020262,2]
[367992036,1750985447891,-625.43,0.00020262,2]
[367992037,1750985447900,-460.0,0.00020262,2]
[367992038,1750985447910,-460.0,0.00020262,2]
[367992039,1750985447919,-487.96,0.00020262,2]
[367992040,1750985447928,-622.78,0.00020262,2]
[367992041,1750985447938,-229.42541191,0.00020262,2]
[367992042,1750985447948,-460.0,0.00020262,2]
[367992043,1750985447957,-460.0,0.00020262,2]
[367992044,1750985447967,-460.0,0.00020262,2]
[367992045,1750985447977,-460.0,0.00020262,2]
[367992046,1750985447986,-545.78860857,0.00020262,2]
[367992047,1750985447995,-460.0,0.00020262,2]
[367992048,1750985448005,-500.0,0.00020262,2]
[367992049,1750985448015,-984.49,0.00020262,2]
[367992050,1750985448024,-460.0,0.00020262,2]
[367992051,1750985448034,-741.45,0.00020262,2]
[367992052,1750985448043,-460.0,0.00020262,2]
[367992053,1750985448052,-460.0,0.00020262,2]
[367992054,1750985448061,-483.21,0.00020262,2]
[367992055,1750985448071,-460.0,0.00020262,2]
[367992056,1750985448080,-460.0,0.00020262,2]
[367992057,1750985448089,-544.42,0.00020262,2]
[367992058,1750985448098,-460.0,0.00020262,2]
[367992059,1750985448107,-460.0,0.00020262,2]
[367992060,1750985448116,-460.0,0.00020262,2]
[367992061,1750985448125,-460.0,0.00020262,2]
[367992062,1750985448134,-460.0,0.00020262,2]
[367992063,1750985448143,-460.0,0.00020262,2]
[367992064,1750985448153,-410.0,0.00020262,2]
[367992065,1750985448162,-510.59,0.00020262,2]
[367992066,1750985448171,-709.52,0.00020262,2]
[367992067,1750985448180,-460.0,0.00020262,2]
[367992068,1750985448189,-460.0,0.00020262,2]
[367992069,1750985448198,-460.0,0.00020262,2]
[367992070,1750985448209,-460.0,0.00020262,2]
[367992071,1750985448218,-460.0,0.00020262,2]
[367992072,1750985448227,-610.09,0.00020262,2]
[367992073,1750985448236,-600.98,0.00020262,2]
[367992074,1750985448246,-453.16372166,0.00020262,2]
[367992075,1750985448255,-460.0,0.00020262,2]
[367992076,1750985448264,-460.0,0.00020262,2]
[367992077,1750985448274,-709.37,0.00020262,2]
[367992078,1750985448283,-939.16,0.00020262,2]
[367992079,1750985448292,-460.0,0.00020262,2]
[367992080,1750985448302,-460.0,0.00020262,2]
[367992081,1750985448311,-460.0,0.00020262,2]
[367992082,1750985448320,-447.36223661,0.00020262,2]
[367992083,1750985448330,-151.0,0.00020262,2]
[367992084,1750985448339,-460.0,0.00020262,2]
[367992085,1750985448348,-460.0,0.00020262,2]
[367992086,1750985448357,-460.0,0.00020262,2]
[367992087,1750985448367,-542.75,0.00020262,2]
[367992088,1750985448376,-460.0,0.00020262,2]
[367992089,1750985448385,-151.0,0.00020262,2]
[367992090,1750985448395,-151.0,0.00020262,2]
[367992091,1750985448404,-511.49,0.00020262,2]
[367992092,1750985448413,-582.91,0.00020262,2]
[367992093,1750985448422,-460.0,0.00020262,2]
[367992094,1750985448431,-460.0,0.00020262,2]
[367992095,1750985448440,-460.0,0.00020262,2]
[367992096,1750985448449,-460.0,0.00020262,2]
[367992097,1750985448458,-460.0,0.00020262,2]
[367992098,1750985448467,-713.85,0.00020262,2]
[367992099,1750985448477,-460.0,0.00020262,2]
[367992100,1750985448486,-460.0,0.00020262,2]
[367992101,1750985448496,-460.0,0.00020262,2]
[367992102,1750985448505,-460.0,0.00020262,2]
[367992103,1750985448514,-151.175171,0.00020262,2]
[367992104,1750985448524,-228.18172,0.00020262,2]
[367992105,1750985448533,-460.0,0.00020262,2]
[367992106,1750985448542,-467.55003261,0.00020262,2]
[367992107,1750985448551,-460.0,0.00020262,2]
[367992108,1750985448562,-188.521677,0.00020262,2]
[367992109,1750985448572,-188.521677,0.00020262,2]
[367992110,1750985448581,-355.55178573,0.00020262,2]
[367992111,1750985448591,-551.11,0.00020262,2]
[367992112,1750985448600,-460.0,0.00020262,2]
[367992113,1750985448610,-239.955208,0.00020262,2]
[367992114,1750985448619,-239.955208,0.00020262,2]
[367992115,1750985448628,-460.0,0.00020262,2]
[367992116,1750985448638,-494.4021679,0.00020262,2]
[367992117,1750985448647,-460.0,0.00020262,2]
[367992118,1750985448657,-460.0,0.00020262,2]
[367992119,1750985448666,-460.0,0.00020262,2]
[367992120,1750985448676,-756.69,0.00020262,2]
[367992121,1750985448686,-1166.64,0.00020262,2]
[367992122,1750985448695,-460.0,0.00020262,2]
[367992123,1750985448705,-460.0,0.00020262,2]
[367992124,1750985448714,-151.0,0.00020262,2]
[367992125,1750985448723,-460.0,0.00020262,2]
[367992126,1750985448732,-450.0,0.00020262,2]
[367992127,1750985448743,-460.0,0.00020262,2]
[367992128,1750985448752,-467.47,0.00020262,2]
[367992129,1750985448762,-460.0,0.00020262,2]
[367992130,1750985448771,-460.0,0.00020262,2]
[367992131,1750985448782,-460.0,0.00020262,2]
[367992132,1750985448791,-460.0,0.00020262,2]
[367992133,1750985448800,-574.99,0.00020262,2]
[367992134,1750985448810,-460.0,0.00020262,2]
[367992135,1750985448819,-460.0,0.00020262,2]
[367992136,1750985448828,-460.0,0.00020262,2]
[367992137,1750985448842,-151.0,0.00020262,2]
[367992138,1750985448851,-460.0,0.00020262,2]
[367992139,1750985448861,-179.946367,0.00020262,2]
[367992140,1750985448871,-151.0,0.00020262,2]
[367992141,1750985448882,-151.0,0.00020262,2]
[367992142,1750985448892,-151.0,0.00020262,2]
[367992143,1750985448901,-151.0,0.00020262,2]
[367992144,1750985448912,-460.0,0.00020262,2]
[367992145,1750985448922,-460.0,0.00020262,2]
[367992146,1750985448931,-460.0,0.00020262,2]
[367992147,1750985448941,-151.0,0.00020262,2]
[367992148,1750985448951,-460.0,0.00020262,2]
[367992149,1750985448961,-460.0,0.00020262,2]
[367992150,1750985448971,-460.0,0.00020262,2]
[367992151,1750985448980,-229.167888,0.00020262,2]
[367992152,1750985448990,-460.0,0.00020262,2]
[367992153,1750985449000,-160.0,0.000203,3]
[367992154,1750985449010,-160.0,0.000203,3]
[367992155,1750985449020,-160.0,0.000203,3]
[367992156,1750985449029,-160.0,0.000203,4]
[367992157,1750985449039,-160.0,0.000203,4]
[367992158,1750985449048,-846.92323443,0.00020314,3]
[367992159,1750985449058,-160.0,0.00020314,3]
[367992160,1750985449067,-12560.17507789,0.00020314,3]
[367992161,1750985449077,-213.72380786,0.00020314,3]
[367992162,1750985449087,-9822.98156475,0.00020314,3]
[367992163,1750985449096,-500.0,0.00020333,2]
[367992164,1750985449106,-500.0,0.00020333,2]
[367992165,1750985449115,-300.18313548,0.00020342,2]
[367992166,1750985449125,-460.0,0.00020463,2]
[367992167,1750985449134,-460.0,0.00020463,2]
[367992168,1750985449144,-476.49,0.00020463,2]
[367992169,1750985449154,-460.0,0.00020463,2]
[367992170,1750985449163,-460.0,0.00020463,2]
[367992171,1750985449173,-460.0,0.00020464,2]
[367992172,1750985449182,-460.0,0.00020464,2]
[367992173,1750985449191,-360.0,0.00020464,2]
[367992174,1750985449201,-484.57,0.00020464,2]
[367992175,1750985449211,-496.21,0.00020464,2]
[367992176,1750985449221,-739.56,0.00020464,2]
[367992177,1750985449231,-2888.24,0.00020464,2]
[367992178,1750985449240,-2989.15,0.00020464,2]
[367992179,1750985449250,-3488.98,0.00020464,2]
[367992180,1750985449260,-470.26,0.00020464,2]
[367992181,1750985449269,-460.0,0.00020465,2]
[367992182,1750985449279,-460.0,0.00020465,2]
[367992183,1750985449288,-460.0,0.00020465,2]
[367992184,1750985449298,-460.0,0.00020465,2]
[367992185,1750985449307,-477.33,0.00020465,2]
[367992186,1750985449316,-460.0,0.00020465,2]
[367992187,1750985449326,-460.0,0.00020465,2]